Cogmind - Beta 17.1 @@@ ROGUE MODE // 2026.09.07 @ 07:53:39 Player: KN-OKO Result: Destroyed by P-70 Sage with Tesla Rifle Performance ------------- Evolutions (5) 2500 Regions Visited (7) 1400 Robots Destroyed (139) 695 Value Destroyed (5369) 5369 Prototype IDs (17) 340 Alien Tech Used (0) 0 Bonus (3087) 3087 TOTAL SCORE: 13391 Bonus ------- High Alert Combat Kills 1476 Follower Combat Kills 811 Registered with UFD 300 Met Optimus in HQ 500 Cogmind --------- Core Integrity 0/1000 Matter 120/300 Energy 325/325 System Corruption 40% Temperature Cool (0) Movement Rolling (120) Ox5 Location -5/Factory Parts ------- > --- POWER (1) -------- Antimatter Reactor > --- PROPULSION (4) --- Improved Titanium Leg Flexi-carbon Leg Overtuned Huge Scrapsphere > --- UTILITY (8) ------ Huge Storage Unit Spectral Analyzer Advanced Sensor Array Advanced Signal Interpreter Advanced Melee Analysis Suite Advanced Melee Analysis Suite Advanced Melee Analysis Suite Improved Corruption Screen > --- WEAPON (4) ------- Katana Axe Power Sword (fused) > --- INVENTORY (25) --- Antimatter Reactor Armored Medium Treads Flexi-carbon Leg Armored Leg Thunder Leg Overtuned Scrapsphere Overtuned Scrapsphere Matter Compressor (250) Improved Actuator Array Improved Medium Armor Plating Heavy Phase Cannon Heavy Proton Missile Launcher Precision Rocket Launcher Axe Spear Peak State ------------ > --- POWER ------------ Neutrino Core > --- PROPULSION ------- Armored Medium Treads Armored Medium Treads Overtuned Huge Scrapsphere > --- UTILITY ---------- Scrap Suit Huge Storage Unit Spectral Analyzer Improved Melee Analysis Suite Improved Melee Analysis Suite Heavy Reactive Plating > --- WEAPON ----------- Heavy Proton Missile Launcher Precision Rocket Launcher Katana Katana > --- INVENTORY -------- Improved Deuterium Engine Improved Titanium Leg Armored Leg Thunder Leg Overtuned Scrapsphere Overtuned Scrapsphere Overtuned Huge Scrapsphere Scrap Suit Cooling System Matter Compressor Improved Target Analyzer Improved Weapon Cycler Improved Medium Armor Plating Advanced Shield Generator Overtuned Coil Gun Hypervelocity Gauss Cannon Axe Axe Axe Power Sword Power Sword [Rating: 95] Favorites ----------- Power Heavy Ion Engine Engine Heavy Ion Engine Power Core Neutrino Core Reactor Antimatter Reactor Propulsion Armored Wheel Treads Armored Medium Treads Leg Aluminum Leg Wheel Armored Wheel Utility Improved Melee Analysis Suite Device Cooling System Storage Huge Storage Unit Processor Improved Melee Analysis Suite Hackware Hacking Suite Protection Improved Medium Armor Plating Weapon Katana Energy Gun Beam Rifle Ballistic Gun Heavy Assault Rifle Ballistic Cannon Hypervelocity Gauss Cannon Launcher Precision Rocket Launcher Slashing Weapon Katana Build | -11 -10 -9 -9 -9 -9 -6 -5 ------- Run | Yrd Mat Mat Sto Rec Scr Fac Fac Slots Evolved 10 | . . 2 . . . 6 2 Power . | . . . . . . . . Propulsion 2 | . . . . . . 2 . Utility 6 | . . . . . . 4 2 Weapon 2 | . . 2 . . . . . Parts Attached 120 | 7 2 9 26 . 4 22 50 Power 14 | 1 . 1 4 . . 1 7 Engine 7 | 1 . 1 4 . . . 1 Core 4 | . . . . . . 1 3 Reactor 3 | . . . . . . . 3 Propulsion 23 | 2 . . 6 . 2 5 8 Treads 3 | . . . . . . . 3 Leg 11 | 2 . . 4 . 1 3 1 Wheel 9 | . . . 2 . 1 2 4 Hover . | . . . . . . . . Flight . | . . . . . . . . Utility 43 | 2 1 4 1 . 1 10 24 Device 17 | 1 . 2 1 . . 5 8 Storage 5 | 1 1 1 . . 1 1 . Processor 12 | . . . . . . 3 9 Hackware 1 | . . . . . . . 1 Protection 8 | . . 1 . . . 1 6 Artifact . | . . . . . . . . Weapon 40 | 2 1 4 15 . 1 6 11 Energy Gun 7 | . . 2 4 . . 1 . Energy Cannon . | . . . . . . . . Ballistic Gun 21 | 2 1 2 9 . 1 3 3 Ballistic Cannon 1 | . . . . . . . 1 Launcher 2 | . . . 1 . . . 1 Special Weapon . | . . . . . . . . Impact Weapon . | . . . . . . . . Slashing Weapon 9 | . . . 1 . . 2 6 Piercing Weapon . | . . . . . . . . Special Melee Weapon . | . . . . . . . . Unidentified Prototypes 4 | . . . 3 . . . 1 Corrupted Parts 2 | . . . . . . . 2 System Corruption 8 | . . . . . . . 8 Parts Lost 40 | . . 2 4 . . . 34 Power 7 | . . 1 . . . . 6 Propulsion 5 | . . . 1 . . . 4 Utility 13 | . . . . . . . 13 Weapon 15 | . . 1 3 . . . 11 Highest Loss Streak 10 | . . 2 2 . . . 10 To Critical Strikes . | . . . . . . . . Average Backups 14 | 3 5 9 14 15 14 16 17 Power . | . 1 . . 1 1 1 . Propulsion 6 | 1 2 5 7 8 6 3 6 Utility 3 | . . 1 2 3 3 5 4 Weapon 4 | . 1 1 3 3 3 5 5 Tool/Special . | . . . . . . . . Unused Backups 38 | . 1 . 11 . 5 5 16 Power 5 | . . . 2 . . 1 2 Propulsion 17 | . . . 8 . 3 2 4 Utility 3 | . . . . . 2 . 1 Weapon 13 | . 1 . 1 . . 2 9 Tool/Special . | . . . . . . . . Average Slot Usage (%) 91 | . 91 95 99 100 100 90 83 Engine 6 | . 13 11 11 11 11 4 . Treads 1 | . . . . . . . 4 Leg 4 | . 27 22 7 . . 8 . Wheel 12 | . . . 14 22 22 15 9 Device 10 | . 8 3 11 11 11 13 9 Storage 8 | . 14 11 11 11 11 6 5 Processor 9 | . . . . . . 11 21 Protection 1 | . . 4 . . . . 2 Energy Gun 3 | . . 7 9 11 3 1 . Ballistic Gun 17 | . 26 35 33 33 30 16 1 Slashing Weapon 11 | . . . 1 . 9 7 19 Peak Build Rating 95 | 7 7 11 22 21 29 74 95 Average Rating 49 | 5 6 9 16 21 25 61 84 On Entrance 21 | . 7 6 11 21 21 29 74 Avg Prop Armor Cover (%) 10 | . . . . . . 8 12 Naked Turns . | . . . . . . . . Heaviest Build 154 | 13 28 32 42 42 63 110 154 Greatest Support 48 | 20 20 20 24 24 24 44 48 Greatest Overweight (x) 7 | 1 2 1 3 1 2 3 7 Average Overweight (x) 2 | . . 1 1 1 1 2 3 Largest Inventory Capacity 25 | 8 15 15 15 15 20 25 25 Average Capacity 19 | 7 13 15 15 15 16 21 25 Most Carried 25 | 4 6 15 15 15 20 23 25 Average Carried 15 | 3 5 9 14 15 14 18 18 Final Capacity 25 | 8 15 15 15 15 20 25 25 Final Carried 23 | 4 6 15 15 15 20 23 15 Scrap Suit Usage (%) 3 | . . . . . . 1 8 Parts Cannibalized 2 | . . . . . . 1 1 Class Distribution -------------------- 20% | Gunner 19% | Scavenger-Scrapper 18% | Scavenger-Gunner 14% | Scavenger-Gladiator 9% | Gladiator 7% | Mutant 5% | Skirmisher Dominant Class ---------------- Mutant | -10/Materials Scavenger-Tank | -9/Materials Scavenger-Gunner | -9/Storage Gunner | -9/Recycling Gunner | -9/Scraptown Skirmisher | -6/Factory Scavenger-Scrapper | -5/Factory Resources | -11 -10 -9 -9 -9 -9 -6 -5 ----------- Run | Yrd Mat Mat Sto Rec Scr Fac Fac Matter Collected 4102 | 305 164 295 626 . 238 1379 1095 Remotely . | . . . . . . . . Salvage Created 5811 | 85 164 326 1144 . . 434 3658 Parts 320 | 10 12 23 75 . . 20 180 Haulers Intercepted 7 | . 1 . 4 . . . 2 Recyclers Shooed 5 | . 1 . 1 . . 3 . Parts Field Recycled . | . . . . . . . . Retrieved Matter . | . . . . . . . . Parts Self-Destructed . | . . . . . . . . Prevented . | . . . . . . . . Parts Restored . | . . . . . . . . Kills | -11 -10 -9 -9 -9 -9 -6 -5 ------- Run | Yrd Mat Mat Sto Rec Scr Fac Fac Combat Hostiles Destroyed 108 | . 6 9 21 . . 3 69 Melee 44 | . . . . . . 1 43 Guns 41 | . 6 9 21 . . 2 3 Cannons 2 | . . . . . . . 2 AOE 20 | . . . . . . . 20 Classes Destroyed 17 | 1 3 3 4 . . 1 5 Worker 4 | . . . 1 . . . 3 Builder 9 | . . . 2 . . 1 6 Tunneler 4 | 4 . . . . . . . Hauler 7 | . 1 . 4 . . . 2 Recycler 3 | . . 1 . . . 2 . Operator 2 | . . . . . . . 2 Watcher 2 | . . . . . . . 2 Swarmer 22 | . 5 3 . . . . 14 Saboteur 2 | . . . . . . . 2 Grunt 28 | . 1 4 7 . . . 16 Brawler 4 | . . . 2 . . . 2 Duelist 8 | . . 1 2 . . . 5 Protector 3 | . . . 1 . . . 2 Sentry 15 | . . 1 9 . . 2 3 Specialist 3 | . . . . . . . 3 Hunter 9 | . . . . . . . 9 Programmer 14 | . . . . . . 1 13 Best Kill Streak 14 | 3 3 3 4 . . 1 14 Combat Bots Only 10 | . 3 3 3 . . 1 10 Max Kills in Single Turn 5 | 1 1 2 1 . . 1 5 Gunslinging 1 | . . 1 . . . . . Exploded 4 | . . . . . . . 4 Melee 1 | . . . . . . 1 1 Uniques/NPCs Destroyed . | . . . . . . . . Combat | -11 -10 -9 -9 -9 -9 -6 -5 -------- Run | Yrd Mat Mat Sto Rec Scr Fac Fac Hostile Shots Fired 716 | . 18 18 83 . . 35 562 Missed 201 | . 5 4 22 . . 10 160 Hits 515 | . 13 14 61 . . 25 402 Melee 23 | . . 7 1 . . . 15 Projectile 492 | . 13 7 60 . . 25 387 AOE 3 | . . . . . . . 3 Critical Strikes 28 | . . 3 5 . . . 20 Part Disruptions 1 | . . . . . . . 1 Actively Blocked 1 | . . . . . . . 1 Damage Taken 9386 | . 124 317 870 . . 394 7681 Core 1252 | . 7 66 113 . . 48 1018 Absorbed by Shields 10 | . . . . . . . 10 Redirected to Shielding 104 | . . . . . . . 104 Ignored by Resistances 308 | . . . . . . . 308 Regen/Repaired (Parts) 283 | . . . . . 266 7 10 Core Remaining (%) 86 | 100 97 . . . 55 94 . Volleys Fired 175 | 10 18 17 63 . . 8 59 Largest 4 | 2 2 4 4 . . 4 2 Hottest 131 | 40 40 125 131 . . 101 100 Shots Fired 466 | 20 33 65 249 . . 32 67 Gun 433 | 20 33 65 249 . . 32 34 Cannon 14 | . . . . . . . 14 Launcher 19 | . . . . . . . 19 Special . | . . . . . . . . Kinetic 377 | 20 33 57 189 . . 31 47 Thermal 70 | . . 8 60 . . 1 1 Explosive 14 | . . . . . . . 14 Electromagnetic 5 | . . . . . . . 5 Robot Hit Streak 18 | 3 5 6 13 . . 18 7 Robot Miss Streak 8 | 2 2 3 8 . . 2 5 Penetration Max 1 | . . . . . . . 1 Secondary Targets 7 | . 1 1 5 . . . . Max Gunslinging Chain 1 | . 1 1 1 . . . . Shots Hit Robots 467 | 10 19 47 162 . . 22 207 Core Hits 285 | 5 10 26 86 . . 12 146 Critical Kills 5 | 1 . 1 . . . . 3 Critical Parts Destroyed 3 | . . . . . . . 3 Critical Strikes 37 | 1 . 1 . . . . 35 Destroy 8 | 1 . 1 . . . . 6 Sever 29 | . . . . . . . 29 Melee Attacks 280 | . . . 6 . . 11 263 Impact . | . . . . . . . . Slashing 280 | . . . 6 . . 11 263 Piercing . | . . . . . . . . Sneak Attacks 11 | . . . 1 . . 3 7 Combat Hostiles . | . . . . . . . . Follow-up Attacks 75 | . . . . . . . 75 Damage Inflicted 15554 | 134 230 457 2166 . . 654 11913 Guns 3776 | 121 230 454 2070 . . 333 568 Cannons 98 | . . . . . . . 98 Explosions 4090 | . . . . . . . 4090 Melee 7571 | . . . 93 . . 321 7157 Ramming 19 | 13 . 3 3 . . . . Kinetic 2937 | 121 230 356 1260 . . 333 637 Thermal 1053 | . . 98 810 . . . 145 Explosive 3323 | . . . . . . . 3323 Electromagnetic 651 | . . . . . . . 651 Impact . | . . . . . . . . Slashing 7571 | . . . 93 . . 321 7157 Piercing . | . . . . . . . . Highest Corruption 40 | . . . 2 2 . 3 40 Average Corruption 18 | . . . 2 2 . 2 28 Corruption Purged . | . . . . . . . . Corruption Blocked 4 | . . . . . . . 4 Effects 123 | . . . 11 1 . 11 100 Message Errors 32 | . . . 4 1 . 3 24 Matter Fused 33 | . . . 2 . . 2 29 Heat Flow Errors 13 | . . . 1 . . 1 11 Energy Discharges 16 | . . . 1 . . . 15 Parts Rejected 2 | . . . . . . . 2 Parts Fused 2 | . . . . . . 1 1 Data Loss (minor) 8 | . . . . . . 1 7 Data Loss (major) 7 | . . . . . . 2 5 Misfires 2 | . . . 1 . . 1 . Alerts 1 | . . . . . . . 1 Misdirections 3 | . . . . . . . 3 Weapon Failures 4 | . . . 2 . . . 2 Overload Shots . | . . . . . . . . Overflow Damage 674 | . . . 9 . . 66 599 Projectiles . | . . . . . . . . Explosions 102 | . . . . . . . 102 Melee 572 | . . . 9 . . 66 497 Knockbacks 1 | . . . . . . . 1 Impact . | . . . . . . . . Kinetic 1 | . . . . . . . 1 Secondary . | . . . . . . . . Self-Inflicted Damage 117 | . . . . . . . 117 Shots 4 | . . . . . . . 4 Rammed . | . . . . . . . . Targets Rammed 8 | 5 . 1 2 . . . . Kicked 8 | 5 . 1 2 . . . . Crushed . | . . . . . . . . Highest Temperature 335 | . 12 200 335 . . 195 242 Average Temperature 81 | . 6 58 94 . . 35 82 Received Heat Transfer 1677 | . 36 54 405 . . 72 1110 Effects 4 | . . . 4 . . . . Energy Bleed 1 | . . . 1 . . . . Interference 3 | . . . 3 . . . . Siege Activations . | . . . . . . . . Martial Activations . | . . . . . . . . Shielding Activations . | . . . . . . . . Robots Disrupted . | . . . . . . . . Combat Hostiles . | . . . . . . . . Robots Corrupted . | . . . . . . . . Combat Hostiles . | . . . . . . . . Parts Fried 2 | . . . . . . 1 1 Impact Corruptions . | . . . . . . . . Robots Melted . | . . . . . . . . Combat Hostiles . | . . . . . . . . Parts Melted 2 | . . . 2 . . . . Heat Transferred 1577 | . . 135 1342 . . . 100 Parts Sabotaged . | . . . . . . . . Parts Stolen . | . . . . . . . . Parts Stripped . | . . . . . . . . Power Chain Reactions 2 | . . . . . . . 2 Alert | -11 -10 -9 -9 -9 -9 -6 -5 ------- Run | Yrd Mat Mat Sto Rec Scr Fac Fac Maximum Alert Level 5 | . . . 1 . . 1 5 Low Security (%) 56 | 100 100 100 58 100 . 89 29 Level 1 9 | . . . 41 . . 10 2 Level 2 5 | . . . . . . . 10 Level 3 12 | . . . . . . . 25 Level 4 13 | . . . . . . . 28 Level 5 1 | . . . . . . . 3 High Security . | . . . . . . . . Max Security . | . . . . . . . . Peak Influence 1607 | 10 105 90 309 116 . 213 1607 Initial 116 | . . . 22 116 . . 84 Average 428 | 1 33 52 143 106 . 77 784 Influence Increases 4326 | 20 162 225 741 . . 585 2593 Destroy 0b10 Robot/C 2500 | . 120 180 500 . . 280 1420 Destroy 0b10 Robot/NC 210 | 20 5 5 45 . . 40 95 Destroy Leader 576 | . 22 40 140 . . 96 278 Allied During Kill 178 | . . . 20 . . 109 49 Successful Hack 84 | . . . 14 . . 19 51 Select Force Hacks 50 | . . . . . . . 50 Disable Machine 195 | . . . 15 . . 30 150 Destroy Structure 248 | . . . 7 . . 11 230 Partial Spotted 15 | . . . . . . . 15 Lose Combat Pursuer 270 | . 15 . . . . . 255 Influence Decreases 2746 | 20 162 170 497 203 96 413 1185 Entered New Map 400 | . . . 33 183 96 . 88 Time Decay 1732 | 20 162 150 404 20 . 293 683 Lost Part 400 | . . 20 40 . . . 340 Lost Ally 214 | . . . 20 . . 120 74 Squads Dispatched 40 | . . 1 4 . . 5 30 Investigation 5 | . . . 1 . . 1 3 Extermination 9 | . . . . . . 2 7 Reinforcement 15 | . . 1 . . . 2 12 Assault 10 | . . . 2 . . . 8 Garrison 1 | . . . 1 . . . . Intercept . | . . . . . . . . Searches Triggered . | . . . . . . . . Construction Impeded 2 | . . . . . . 1 1 Haulers Reinforced 1 | . . . . . . . 1 Active Scanning Responses . | . . . . . . . . Cargo Convoy Interrupts 1 | . . . . . . . 1 Stealth | -11 -10 -9 -9 -9 -9 -6 -5 --------- Run | Yrd Mat Mat Sto Rec Scr Fac Fac Distress Signals 4 | . 1 . 1 . . 1 1 Communications Jammed . | . . . . . . . . Distress Signals . | . . . . . . . . Times Spotted 189 | . 8 12 33 . . 10 126 Peak Tracking Total 13 | . 4 4 6 . . 3 13 Tactical Retreats 15 | . 1 . . . . . 14 Traps | -11 -10 -9 -9 -9 -9 -6 -5 ------- Run | Yrd Mat Mat Sto Rec Scr Fac Fac Traps Triggered 9 | . 5 . 1 . . 3 . Indirectly . | . . . . . . . . Trap Hack Attempts . | . . . . . . . . Triggered . | . . . . . . . . Disarmed . | . . . . . . . . Reprogrammed . | . . . . . . . . Reused . | . . . . . . . . Traps Extracted . | . . . . . . . . Installed . | . . . . . . . . Triggered . | . . . . . . . . Machines | -11 -10 -9 -9 -9 -9 -6 -5 ---------- Run | Yrd Mat Mat Sto Rec Scr Fac Fac Machines Disabled 13 | . . . 1 . . 2 10 Max in Single Turn 3 | . . . 1 . . . 3 Garrison Access 2 | . . . 1 . . . 1 Machines Repaired . | . . . . . . . . Machines Dismantled . | . . . . . . . . Machines Sabotaged . | . . . . . . . . Overloaded Fab Kills 4 | . . . . . . . 4 Hacking | -11 -10 -9 -9 -9 -9 -6 -5 --------- Run | Yrd Mat Mat Sto Rec Scr Fac Fac Machines Accessed 30 | . . . 8 . 2 8 12 Terminals 18 | . . . 7 . . 4 7 Fabricators 4 | . . . . . . 1 3 Repair Stations . | . . . . . . . . Recycling Units 4 | . . . . . . 3 1 Scanalyzers 1 | . . . . . . . 1 Garrison Access 1 | . . . 1 . . . . Total Hacks 73 | . . . 16 . 6 23 28 Successful 37 | . . . 8 . 6 13 10 Failed 36 | . . . 8 . . 10 18 Catastrophic 8 | . . . . . . 3 5 Database Lockouts . | . . . . . . . . Manual 27 | . . . 5 . . 10 12 Terminals 44 | . . . 15 . . 13 16 Fabricators 12 | . . . . . . 2 10 Repair Stations . | . . . . . . . . Recycling Units 9 | . . . . . . 8 1 Scanalyzers 1 | . . . . . . . 1 Garrison Access 1 | . . . 1 . . . . Terminal Hacks 18 | . . . 6 . 6 3 3 Record 6 | . . . . . 6 . . Prototype ID Bank 2 | . . . 1 . . 1 . Open Door 4 | . . . 4 . . . . Emergency Access Points 2 | . . . . . . 1 1 Alert Level 2 | . . . . . . 1 1 Registered Components 2 | . . . 1 . . . 1 Fabricator Hacks 3 | . . . . . . 1 2 Network Status 2 | . . . . . . 1 1 Build 1 | . . . . . . . 1 Repair Station Hacks . | . . . . . . . . Recycling Unit Hacks 6 | . . . . . . 6 . Process 2 | . . . . . . 2 . Report Inventory 2 | . . . . . . 2 . Retrieve Matter 2 | . . . . . . 2 . Scanalyzer . | . . . . . . . . Garrison Access Hacks 1 | . . . 1 . . . . Seal Access 1 | . . . 1 . . . . Unauthorized Hacks 9 | . . . 1 . . 3 5 Terminals 5 | . . . 1 . . 2 2 Assimilate 1 | . . . . . . . 1 Botnet 3 | . . . 1 . . 1 1 Skim 1 | . . . . . . 1 . Fabricators 2 | . . . . . . . 2 Fabnet 1 | . . . . . . . 1 Overload 1 | . . . . . . . 1 Repair Stations . | . . . . . . . . Recycling Units 2 | . . . . . . 1 1 Scrapoids 2 | . . . . . . 1 1 Scanalyzers . | . . . . . . . . Garrison Access . | . . . . . . . . Data Cores Recovered . | . . . . . . . . Used . | . . . . . . . . Hacking Detections 18 | . . . 2 . . 6 10 Full Trace Events 2 | . . . 1 . . . 1 Feedback Events . | . . . . . . . . Feedback Blocked . | . . . . . . . . Robot Schematics Acquired . | . . . . . . . . Robots Built . | . . . . . . . . Authchips . | . . . . . . . . Time . | . . . . . . . . Total Robot Build Rating . | . . . . . . . . Part Schematics Acquired . | . . . . . . . . Parts Built 1 | . . . . . . . 1 Authchips . | . . . . . . . . Time 106 | . . . . . . . 106 Total Part Build Rating 6 | . . . . . . . 6 Part Studies Acquired . | . . . . . . . . Parts Repaired . | . . . . . . . . Time . | . . . . . . . . Parts Recycled . | . . . . . . . . Recycled Matter 98 | . . . . . . 98 . Retrieved Matter 98 | . . . . . . 98 . Retrieved Components . | . . . . . . . . Parts Scanalyzed . | . . . . . . . . Part Schematics Acquired . | . . . . . . . . Parts Damaged . | . . . . . . . . Bothacking | -11 -10 -9 -9 -9 -9 -6 -5 ------------ Run | Yrd Mat Mat Sto Rec Scr Fac Fac Used RIF Installer . | . . . . . . . . Robots Hacked . | . . . . . . . . Non-combat . | . . . . . . . . Combat . | . . . . . . . . Robot Hacks Applied . | . . . . . . . . Relay Couplers Released 3 | . . . . . . . 3 Machine Destruction 3 | . . . . . . . 3 Fabnet Peak Effective % . | . . . . . . . . Robots Rewired . | . . . . . . . . Allies Hacked . | . . . . . . . . Hacks Repelled . | . . . . . . . . Allies | -11 -10 -9 -9 -9 -9 -6 -5 -------- Run | Yrd Mat Mat Sto Rec Scr Fac Fac Total Allies 17 | . . . 2 . . 10 5 Largest Group 7 | . . . 2 . . 7 5 Highest-Rated Group 291 | . . . 62 . . 291 241 Highest-Rated Ally 50 | . . . 31 . . 47 50 Initial UFD Resources 23 | . . . . . . 23 22 Total Orders . | . . . . . . . . Ally Attacks 158 | . . . 38 . . 85 35 Total Damage 3300 | . . . 614 . . 1625 1061 Kills 31 | . . . 7 . . 16 8 Allies Corrupted . | . . . . . . . . Allies Melted . | . . . . . . . . Intel | -11 -10 -9 -9 -9 -9 -6 -5 ------- Run | Yrd Mat Mat Sto Rec Scr Fac Fac Active Infowar (turns) 4131 | 18 259 . . . . 1005 2849 Optics 3854 | . . . . . . 1005 2849 Sensors 436 | . . . . . . . 436 IFF 20 | . . . . . . 20 . Terrain 694 | . . . . . . 354 340 Seismic 1628 | 18 259 . . . . 509 842 Robot Analysis Total . | . . . . . . . . Derelict Logs Recovered . | . . . . . . . . Drone Launches . | . . . . . . . . Drone Recoveries . | . . . . . . . . Exploration | -11 -10 -9 -9 -9 -9 -6 -5 ------------- Run | Yrd Mat Mat Sto Rec Scr Fac Fac Turns Passed 7382 | 124 436 367 978 58 1561 1009 2849 Spaces Moved 4730 | 61 208 148 489 56 1408 712 1648 Core 6 | 6 . . . . . . . Treads . | . . . . . . . . Legs 510 | 55 208 148 99 . . . . Wheels 4214 | . . . 390 56 1408 712 1648 Hover . | . . . . . . . . Flight . | . . . . . . . . Fastest Speed 50 | 50 120 190 105 105 105 96 90 Average Speed 119 | 115 167 190 122 105 109 117 116 Slowest Speed 330 | 120 260 190 330 105 120 135 160 Overloaded Moves . | . . . . . . . . Propulsion Burnouts . | . . . . . . . . Robots Hopped . | . . . . . . . . Potential Cave-ins 3 | . . . . . . . 3 Cave-ins Triggered . | . . . . . . . . Exploration Rate (%) 38 | 3 38 15 67 22 85 22 52 Regions Visited 7 Branch Regions 3 Pre-discovered Areas 1 | . . . . . 1 . . Known Exits Taken . | . . . . . . . . Unknown Exits Taken 7 | 1 1 1 1 1 1 1 . Scrap Searched 5 | . . . . . 5 . . Spaces Dug 43 | . . . 2 . . 5 36 Terrain Destroyed 132 | . . . 2 . . 6 124 Melee 43 | . . . 2 . . 5 36 Projectile 15 | . . . . . . 1 14 AOE 74 | . . . . . . . 74 Terrain Rammed . | . . . . . . . . Walls Destroyed . | . . . . . . . . Machines Disabled . | . . . . . . . . Actions | -11 -10 -9 -9 -9 -9 -6 -5 --------- Run | Yrd Mat Mat Sto Rec Scr Fac Fac Total 5878 | 90 261 200 744 55 1434 857 2237 Wait 407 | 4 19 13 93 . 3 45 230 Move 4724 | 61 207 147 488 55 1407 711 1648 Hop . | . . . . . . . . Pick Up 93 | 4 4 9 22 . 9 19 26 Fast Attach 56 | 7 9 5 6 . 1 4 24 Attach 47 | . 1 3 6 . 1 10 26 Detach 20 | . . 2 3 . . 6 9 Swap 59 | . 1 2 18 . 4 14 20 Drop 87 | . 2 1 37 . 9 22 16 Fire 175 | 10 18 17 63 . . 8 59 Melee 195 | . . . 6 . . 10 179 Ram . | . . . . . . . . Kick 7 | 4 . 1 2 . . . . Crush . | . . . . . . . . Escape Stasis 8 | . . . . . . 8 . Rewire . | . . . . . . . . Trap . | . . . . . . . . Miscellaneous . | . . . . . . . . Route ------- -11/Scrapyard -10/Materials (discovered 3 exits: [*Mat] / [*Min] / [*Sub]) -9/Materials -9/Storage -9/Recycling -9/Scraptown -6/Factory -5/Factory (discovered 1 exit: [*Ext]) History --------- Turn | Location | Event 26 | -11/Scrapyard | Discovered new exit (range 15) 125 | -11/Scrapyard | Entered Materials 125 | -10/Materials | Discovered new exit (range 7) 317 | -10/Materials | Build established: Mutant 318 | -10/Materials | Discovered new exit (range 4) 439 | -10/Materials | Discovered new exit (range 10) 561 | -10/Materials | Entered another Materials area 561 | -9/Materials | Evolved 2 slots: Weapon x2 855 | -9/Materials | Discovered new exit (range 4) 928 | -9/Materials | Entered Storage 1105 | -9/Storage | Build established: Scavenger-Gunner 1444 | -9/Storage | Met a pair of Derelict thieves 1475 | -9/Storage | Garrison activated, responded to threat 1901 | -9/Storage | Used back door to open Recycling access 1901 | -9/Storage | Discovered new exit (range 5) 1906 | -9/Storage | Entered Recycling 1940 | -9/Recycling | Scanned before Scraplab entrance 1955 | -9/Recycling | Entered Scraplab 1963 | -9/Recycling | Discovered new exit (range 2) 1964 | -9/Recycling | Entered Scraptown 1964 | -9/Scraptown | System corruption cleaned by C-Scrubber 2079 | -9/Scraptown | Visited Shadow of the Wyrm 2094 | -9/Scraptown | Visited Cyclists 2095 | -9/Scraptown | Build established: Gunner 2105 | -9/Scraptown | Visited Symbiants 2107 | -9/Scraptown | Heard Great Nut preacher, LISTEN AND RECITE! 2126 | -9/Scraptown | Visited CR-KLE's Repair Center 2150 | -9/Scraptown | Visited CPS Storage 2164 | -9/Scraptown | Visited The Evicted 2205 | -9/Scraptown | Visited Cave Peace 2392 | -9/Scraptown | CR-KLE repaired 7 parts 2432 | -9/Scraptown | Build established: Scavenger-Gunner 2434 | -9/Scraptown | Visited UFD Registry 2434 | -9/Scraptown | Registered with UFD as "Carbonchaser" 2470 | -9/Scraptown | Visited Junk Repository 2515 | -9/Scraptown | Visited LU-1G1's Boring Crew 2553 | -9/Scraptown | Visited Junk Repository 2586 | -9/Scraptown | Visited Infowarlord's Domain 2592 | -9/Scraptown | Found Spectral Analyzer 2609 | -9/Scraptown | Visited Abandonware Association 2622 | -9/Scraptown | Learned abandonware demo "REVENGE.EXE" 2625 | -9/Scraptown | Learned abandonware demo "OVRCLOCK.EXE" 2645 | -9/Scraptown | Visited Science Testing Area 2661 | -9/Scraptown | Visited Curators Association 2703 | -9/Scraptown | Visited Chapter 10 2775 | -9/Scraptown | Visited Scrapoid Pod Storage 2781 | -9/Scraptown | Build established: Gunner 2999 | -9/Scraptown | Entered Cyclist Reading Room 3027 | -9/Scraptown | Received an X-ray algorithm 3298 | -9/Scraptown | Found Scrapoid Pod 3340 | -9/Scraptown | Found Scrap Suit 3342 | -9/Scraptown | Found Scrap Suit 3451 | -9/Scraptown | Met Optimus 3451 | -9/Scraptown | Accepted into 0bPrime 3521 | -9/Scraptown | Discovered new exit (range 3) 3525 | -9/Scraptown | Entered Factory 3525 | -6/Factory | Evolved 6 slots: Propulsion x2, Utility x4 3781 | -6/Factory | Scrapoids reinforcements arrived? 4152 | -6/Factory | Scrapoid Pod released 06F10-D (x5) 4281 | -6/Factory | Found Hvy. Reactive Plating 4489 | -6/Factory | Discovered new exit (range 7) 4498 | -6/Factory | Build established: Scavenger-Scrapper 4534 | -6/Factory | Entered another Factory area 4534 | -5/Factory | Accompanied by 2 allies 4534 | -5/Factory | Evolved 2 slots: Utility x2 4708 | -5/Factory | Discovered new exit (range 12) 5362 | -5/Factory | Cargo convoy interrupted 5398 | -5/Factory | Destroyed 10 combat bots 5707 | -5/Factory | System corruption reached 10% 5734 | -5/Factory | First assault squad dispatched 5806 | -5/Factory | Scrapoids reinforcements arrived? 5880 | -5/Factory | Lost 3 allies 5988 | -5/Factory | Destroyed 10 combat bots 5996 | -5/Factory | Lost 10 parts (2p1n3u4w) 6107 | -5/Factory | Fabricated Mni. Drone Bay? 6115 | -5/Factory | System corruption reached 30% 6118 | -5/Factory | Core integrity fell below 50% 6168 | -5/Factory | Lost 3 parts (1n1u1w) 6495 | -5/Factory | Lost 4 parts (1p2u1w) 6714 | -5/Factory | Build established: Scavenger-Gladiator 6888 | -5/Factory | Noticed a derelict Sapper rigging charges 6965 | -5/Factory | Spotted B-75 Beast 7009 | -5/Factory | Core integrity fell below 20% 7383 | -5/Factory | Destroyed by P-70 Sage with Tesla Rifle Last Messages --------------- 07313_ Ovr. Huge Scrapsphere suddenly begins malfunctioning. 07316_ System corrupted: Substantial component data lost. 07323_ The unstable cave ceiling collapses. 07336_ System corrupted: Heat flow error (+250). 07344_ Ovr. Huge Scrapsphere recovered from malfunction. 07356_ TDPTQ%SH Y7C&ABS6OEU9MOBF98 07366_ Ovr. Huge Scrapsphere suddenly begins malfunctioning. 07369_ Ovr. Huge Scrapsphere recovered from malfunction. 07369_ Nuclear Reactor explodes. 07369_ Arm. Huge Wheel destroyed. 07369_ Axe destroyed. 07369_ Nuclear Reactor explodes. 07369_ Imp. Corruption Screen intercepted 1% system corruption. 07373_ System corrupted: Energy discharge (-130). 07374_ The unstable cave ceiling collapses. 07375_ Imp. Corruption Screen intercepted 1% system corruption. 07378_ Axe follow-up attack on P-70 Sage. 07380_ The unstable cave ceiling collapses. 07382_ P-70 Sage resets P-70 Sage, system corruption cleaned. 07383_ Imp. Corruption Screen intercepted 1% system corruption. Map ----- +----------------------------------------------------+ | ??????????????????????????????????????????? | | ??????????????????????????????????????????? | | ??????????????????????????????????????????? | | ??????????????????????????????????????????? | | ??????????????????????????????????????????? | | ??????????????????????????????????????????? | | ??????????????????????????????????????????? | | ??????????????????????????????????????????? | | ??????????????????????????????????????????? | | ??????????????????????????????????????????? | | ??????????????????????????????????????????? | | ??????????????????????????????????????????? | | ??????????????????????????????????????????? | | ?????????????????????###??????????????????? | | ?????????????#########;######?????????????? | | ?????????????# # #####?????????? | | ?????????????# # ;#?????????? | | ?????????????# ##????????? | | ####?????????# ! #????????? | | #?????????#### ##???????? | | " =#????????????# #???????? | | " #????????????# # #???????? | | " #????????????# #??###### | | #????????##### # # | | #????????+ p # | | ####????????# m@ ! # | | "#######????# p ! "" # | | #????# # "" # | | #????# # #+##### """ ! # | | " #????# ^ % [ # """ # | | " """ ###### # """ # | | " R" + ] + ""# | | " """ ###### ] !! # "" ""# | | #????# " " !!! # "" ""# | | ############# !/! #?""" S# | | """" !#?""" ""# | | ""F" """ """ """ #??"" ""# | | " """ """ """ """ #?? ""# | | " """ """ """ """ #??? ? | | " """ #???######? | | " """ ] #?????????? | | #############+####?????????? | | " """ """ """ #??????????????????????????? | | " """ """ """ #??????????????????????????? | | " """ """ """ #??????????????????????????? | | " """ """ """ #??????#???????????????????? | | #??????????????????????????? | | #??????????????????????????? | | ######?#?????????"??????????????? | | #####+#+###?#???????????????????????#?????? | +----------------------------------------------------+ Best States ------------- Heat Dissipation 62 Energy Generation 21 Energy Capacity 325 Matter Stores 300 Matter Capacity 300 Sight Range 24 Robot Scan Range 16 Terrain Scan Range 20 Terrain Scan Density 10 Corruption Block 15 Armor Coverage 600 Resistance: KI 40 Resistance: EM 25 Core Shielding 20 Propulsion Shielding 66 Weapon Cycling 20 Melee Speed Boost 20 Phase Shifting 5 Evasion (%) 55 Melee Accuracy 24 Target Analysis 6 Recoil Reduction 2 Offensive Hacking 10 Item Schematics ----------------- None Robot Schematics ------------------ None Fabricated ------------ Mni. Drone Bay | x1 | -5/Factory | Preloaded Repaired ---------- Nothing Studied --------- None Alien Tech Used ----------------- None Achievements -------------- Bob, First Of His Name Link The Feds Challenges ------------ None Game ------ Seed SmallImpactTether Manual? 0 Play Time 01:10:01 Cumulative 579.5 hours Start 2026.09.07 @ 06:45:08 End 2026.09.07 @ 07:53:39 Sessions 1 Manual Loads 0 Difficulty Rogue Special Mode None Game No. 390 Rogue 390 Adventurer 0 Explorer 0 Win Type - Total 58 Types 49/0/7/2/0/0/0/0/0/0 Lore% 83 Gallery% 77 Achievement% 58 Wizard Run 0 Options --------- Layout 0 ASCII 0 Keyboard 1 Movement Numpad Keybinds 0 Fullscreen 2 Font 24/Terminus Map View 76x50 Zoom Use 0% Tactical HUD 1 Map Filters NONE Filters NONE Steam 1 RUN: 37e8dd7c-96db-407f-bdc7-a72a21ff2203